fUSD/lending_fUSD_20240828
["ID","MTS","AMOUNT","RATE_DAILY","PERIOD"]
[336509256,1724886116122,-1416.66,0.00038904,120]
[336509257,1724886116151,-3210.07,0.00038904,120]
[336509258,1724886116180,-500.0,0.00038904,120]
[336509259,1724886116209,-1426.45,0.00038904,120]
[336509260,1724886116237,-683.48,0.00038904,120]
[336509261,1724886116266,-1155.3,0.00038904,120]
[336509262,1724886116298,-541.69844556,0.00038904,120]
[336509263,1724886116326,-953.05,0.00038904,120]
[336509264,1724886116355,-1953.57,0.00038904,120]
[336509265,1724886116384,-500.0,0.00038904,120]
[336509266,1724886116414,-500.0,0.00038904,120]
[336509267,1724886116444,-521.17,0.00038904,120]
[336509268,1724886116476,-500.0,0.00038904,120]
[336509269,1724886116506,-500.0,0.00038904,120]
[336509270,1724886116535,-500.0,0.00038904,120]
[336509271,1724886116564,-2061.37,0.00038904,120]
[336509272,1724886116596,-500.0,0.00038904,120]
[336509273,1724886116628,-1334.57,0.00038904,120]
[336509274,1724886116657,-746.59,0.00038904,120]
[336509275,1724886116690,-663.07,0.00038904,120]
[336509276,1724886116723,-500.0,0.00038904,120]
[336509277,1724886116751,-500.0,0.00038904,120]
[336509278,1724886116778,-500.0,0.00038904,120]
[336509279,1724886116808,-1030.68,0.00038904,120]
[336509280,1724886116838,-500.0,0.00038904,120]
[336509281,1724886116867,-910.03,0.00038904,120]
[336509282,1724886116896,-500.0,0.00038904,120]
[336509283,1724886116927,-3077.64,0.00038904,120]
[336509284,1724886116955,-602.48,0.00038904,120]
[336509285,1724886116986,-500.0,0.00038904,120]
[336509286,1724886117015,-2165.38,0.00038904,120]
[336509287,1724886117045,-585.27,0.00038904,120]
[336509288,1724886117074,-500.0,0.00038904,120]
[336509289,1724886117104,-500.0,0.00038904,120]
[336509290,1724886117141,-2823.61,0.00038904,120]
[336509291,1724886117173,-500.0,0.00038904,120]
[336509292,1724886117205,-500.0,0.00038904,120]
[336509293,1724886117235,-500.0,0.00038904,120]
[336509294,1724886117266,-500.0,0.00038904,120]
[336509295,1724886117300,-548.35,0.00038904,120]
[336509296,1724886117332,-529.15,0.00038904,120]
[336509297,1724886117362,-500.0,0.00038904,120]
[336509298,1724886117394,-548.13,0.00038904,120]
[336509299,1724886117425,-500.0,0.00038904,120]
[336509300,1724886117456,-500.0,0.00038904,120]
[336509301,1724886117485,-2554.35,0.00038904,120]
[336509302,1724886117512,-500.0,0.00038904,120]
[336509303,1724886117540,-500.0,0.00038904,120]
[336509304,1724886117569,-500.0,0.00038904,120]
[336509305,1724886117596,-500.0,0.00038904,120]
[336509306,1724886117625,-699.03,0.00038904,120]
[336509307,1724886117659,-523.90559853,0.00038904,120]
[336509308,1724886117687,-676.5,0.00038904,120]
[336509309,1724886117717,-500.0,0.00038904,120]
[336509310,1724886117747,-3388.55,0.00038904,120]
[336509311,1724886117775,-500.0,0.00038904,120]
[336509312,1724886117806,-535.76,0.00038904,120]
[336509313,1724886117841,-1000.0,0.00038904,120]
[336509314,1724886117870,-500.0,0.00038904,120]
[336509315,1724886117899,-1865.1,0.00038904,120]
[336509316,1724886117928,-541.75,0.00038904,120]
[336509317,1724886117958,-1770.24,0.00038904,120]
[336509318,1724886117986,-901.56,0.00038904,120]
[336509319,1724886118015,-2524.53,0.00038904,120]
[336509320,1724886118046,-500.0,0.00038904,120]
[336509321,1724886118074,-547.68,0.00038904,120]
[336509322,1724886118105,-2488.01,0.00038904,120]
[336509323,1724886118136,-710.96,0.00038904,120]
[336509324,1724886118165,-500.0,0.00038904,120]
[336509325,1724886118197,-813.62,0.00038904,120]
[336509326,1724886118225,-506.14,0.00038904,120]
[336509327,1724886118256,-508.67,0.00038904,120]
[336509328,1724886118287,-612.27,0.00038904,120]
[336509329,1724886118321,-2252.59,0.00038904,120]
[336509330,1724886118350,-1209.2,0.00038904,120]
[336509331,1724886118377,-500.0,0.00038904,120]
[336509332,1724886118407,-517.53,0.00038904,120]
[336509333,1724886118441,-2839.49,0.00038904,120]
[336509334,1724886118471,-814.07,0.00038904,120]
[336509335,1724886118502,-1273.71,0.00038904,120]
[336509336,1724886118531,-500.0,0.00038904,120]
[336509337,1724886118560,-500.0,0.00038904,120]
[336509338,1724886118591,-811.97,0.00038904,120]
[336509339,1724886118619,-500.0,0.00038904,120]
[336509340,1724886118646,-682.27,0.00038904,120]
[336509341,1724886118672,-3711.69,0.00038904,120]
[336509342,1724886118698,-4714.78,0.00038904,120]
[336509343,1724886118724,-1909.1,0.00038904,120]
[336509344,1724886118750,-500.0,0.00038904,120]
[336509345,1724886118776,-2426.11,0.00038904,120]
[336509346,1724886118802,-707.93,0.00038904,120]
[336509347,1724886118829,-500.0,0.00038904,120]
[336509348,1724886118856,-3143.22,0.00038904,120]
[336509349,1724886118884,-500.0,0.00038904,120]
[336509350,1724886118914,-2151.08,0.00038904,120]
[336509351,1724886118943,-508.51432194,0.00038904,120]
[336509352,1724886118973,-500.0,0.00038904,90]
[336509353,1724886119001,-500.0,0.00038904,120]
[336509354,1724886119029,-500.0,0.00038904,120]
[336509355,1724886119059,-500.0,0.00038904,120]
[336509356,1724886119086,-500.0,0.00038904,120]
[336509357,1724886119117,-500.0,0.00038904,120]
[336509358,1724886119155,-500.0,0.00038904,120]
[336509359,1724886119196,-500.0,0.00038904,120]
[336509360,1724886119238,-500.0,0.00038904,120]
[336509361,1724886119283,-500.0,0.00038904,120]
[336509362,1724886119326,-497.34522334,0.00038904,120]
[336509363,1724886119366,-500.0,0.00038904,120]
[336509364,1724886119406,-720.01,0.00038904,120]
[336509365,1724886119441,-2325.23,0.00038904,120]
[336509366,1724886119483,-500.0,0.00038904,120]
[336509367,1724886119524,-500.0,0.00038904,120]
[336509368,1724886119560,-1167.62,0.00038904,120]
[336509369,1724886119600,-1035.67,0.00038904,120]
[336509370,1724886119642,-2220.57,0.00038904,120]
[336509371,1724886119679,-640.96,0.00038904,120]
[336509372,1724886119717,-2343.97,0.00038904,120]
[336509373,1724886119752,-500.0,0.00038904,120]
[336509374,1724886119789,-500.0,0.00038904,120]
[336509375,1724886119826,-500.0,0.00038904,120]
[336509376,1724886119861,-2244.32,0.00038904,120]
[336509377,1724886119900,-989.97,0.00038904,120]
[336509378,1724886119938,-1185.69,0.00038904,120]
[336509379,1724886119976,-199.012895,0.00038904,120]
[336509380,1724886120014,-500.0,0.00038904,120]
[336509381,1724886120052,-2762.82,0.00038904,120]
[336509382,1724886120090,-500.0,0.00038904,120]
[336509383,1724886120126,-2948.43,0.00038904,120]
[336509384,1724886120165,-575.21,0.00038904,120]
[336509385,1724886120202,-500.0,0.00038904,120]
[336509386,1724886120240,-1166.18,0.00038904,120]
[336509387,1724886120281,-300.0,0.00038904,120]
[336509388,1724886120322,-152.291682,0.00038904,120]
[336509389,1724886120359,-584.41,0.00038904,120]
[336509390,1724886120410,-500.0,0.00038904,120]
[336509391,1724886120447,-1465.05,0.00038904,120]
[336509392,1724886120483,-500.0,0.00038904,120]
[336509393,1724886120524,-540.348069,0.00038904,120]
[336509394,1724886120560,-1232.71,0.00038904,120]
[336509395,1724886120594,-500.0,0.00038904,120]
[336509396,1724886120631,-500.0,0.00038904,120]
[336509397,1724886120669,-500.0,0.00038904,120]
[336509398,1724886120704,-1272.91,0.00038904,120]
[336509399,1724886120742,-1970.46,0.00038904,120]
[336509400,1724886120776,-1296.99,0.00038904,120]
[336509401,1724886120812,-2282.89,0.00038904,120]
[336509402,1724886120847,-1820.05,0.00038904,120]
[336509403,1724886120881,-500.0,0.00038904,120]
[336509404,1724886120915,-500.0,0.00038904,120]
[336509405,1724886120946,-917.99,0.00038904,120]
[336509406,1724886120979,-500.0,0.00038904,120]
[336509407,1724886121014,-747.83,0.00038904,120]
[336509408,1724886121056,-500.0,0.00038904,120]
[336509409,1724886121093,-500.0,0.00038904,120]
[336509410,1724886121130,-821.92,0.00038904,120]
[336509411,1724886121169,-1686.6,0.00038904,120]
[336509412,1724886121208,-737.43,0.00038904,120]
[336509413,1724886121243,-500.0,0.00038904,120]
[336509414,1724886121280,-564.42,0.00038904,120]
[336509415,1724886121315,-600.0,0.00038904,120]
[336509416,1724886121352,-2294.02,0.00038904,120]
[336509417,1724886121390,-1191.43,0.00038904,120]
[336509418,1724886122165,-519.7,0.00038904,120]
[336509419,1724886122209,-500.0,0.00038904,120]
[336509420,1724886122239,-500.0,0.00038904,120]
[336509421,1724886122272,-837.32,0.00038904,120]
[336509422,1724886122319,-575.39,0.00038904,120]
[336509423,1724886122351,-524.85,0.00038904,120]
[336509424,1724886122380,-1002.53,0.00038904,120]
[336509425,1724886122414,-1409.4,0.00038904,120]
[336509426,1724886122449,-500.0,0.00038904,120]
[336509427,1724886122479,-500.0,0.00038904,120]
[336509428,1724886122507,-500.0,0.00038904,120]
[336509429,1724886122537,-500.0,0.00038904,120]
[336509430,1724886122568,-2535.4,0.00038904,120]
[336509431,1724886122598,-4393.25,0.00038904,120]
[336509432,1724886122629,-675.22,0.00038904,120]
[336509433,1724886122662,-1299.2,0.00038904,120]
[336509434,1724886122692,-1598.32,0.00038904,120]
[336509435,1724886122724,-1602.67,0.00038904,120]
[336509436,1724886122756,-575.42,0.00038904,120]
[336509437,1724886122790,-500.0,0.00038904,120]
[336509438,1724886122819,-507.1119311,0.00038904,30]
[336509439,1724886122849,-584.86,0.00038904,120]
[336509440,1724886122881,-1344.22,0.00038904,120]
[336509441,1724886122915,-1922.58,0.00038904,120]
[336509442,1724886122944,-1809.61,0.00038904,120]
[336509443,1724886122974,-500.0,0.00038904,120]
[336509444,1724886123005,-510.11962228,0.00038904,120]
[336509445,1724886123037,-952.37,0.00038904,120]
[336509446,1724886123069,-1283.83,0.00038904,120]
[336509447,1724886123102,-500.0,0.00038904,120]
[336509448,1724886123134,-581.95,0.00038904,120]
[336509449,1724886123168,-500.0,0.00038904,120]
[336509450,1724886123202,-500.0,0.00038904,120]
[336509451,1724886123233,-2410.25,0.00038904,120]
[336509452,1724886123266,-2888.6,0.00038904,120]
[336509453,1724886123304,-633.91,0.00038904,120]
[336509454,1724886123339,-500.0,0.00038904,120]
[336509455,1724886123372,-1004.28,0.00038904,120]
[336509456,1724886123414,-500.0,0.00038904,120]
[336509457,1724886123446,-1799.93,0.00038904,120]
[336509458,1724886123479,-500.0,0.00038904,120]
[336509459,1724886123510,-500.0,0.00038904,120]
[336509460,1724886123544,-500.0,0.00038904,120]
[336509461,1724886123577,-1684.24,0.00038904,120]
[336509462,1724886123608,-785.28,0.00038904,120]
[336509463,1724886123639,-2518.15,0.00038904,120]
[336509464,1724886123670,-540.51,0.00038904,120]
[336509465,1724886123700,-500.0,0.00038904,120]
[336509466,1724886123730,-1832.23,0.00038904,120]
[336509467,1724886123761,-500.0,0.00038904,120]
[336509468,1724886123793,-500.0,0.00038904,120]
[336509469,1724886123823,-672.25,0.00038904,120]
[336509470,1724886123854,-734.43,0.00038904,120]
[336509471,1724886123885,-917.17,0.00038904,120]
[336509472,1724886123918,-3116.4,0.00038904,120]
[336509473,1724886123950,-500.0,0.00038904,120]
[336509474,1724886123981,-500.0,0.00038904,120]
[336509475,1724886124011,-500.0,0.00038904,120]
[336509476,1724886124041,-1045.5,0.00038904,120]
[336509477,1724886124073,-1143.43,0.00038904,120]
[336509478,1724886124103,-3671.29,0.00038904,120]
[336509479,1724886124134,-3854.97,0.00038904,120]
[336509480,1724886124169,-500.0,0.00038904,120]
[336509481,1724886124202,-2939.44,0.00038904,120]
[336509482,1724886124234,-500.0,0.00038904,120]
[336509483,1724886124266,-500.0,0.00038904,120]
[336509484,1724886124303,-500.0,0.00038904,30]
[336509485,1724886124336,-500.0,0.00038904,120]
[336509486,1724886124370,-1546.79,0.00038904,120]
[336509487,1724886124402,-500.0,0.00038904,120]
[336509488,1724886124433,-500.0,0.00038904,120]
[336509489,1724886124465,-500.0,0.00038904,120]
[336509490,1724886124495,-500.0,0.00038904,120]
[336509491,1724886124526,-2128.31,0.00038904,120]
[336509492,1724886124557,-3191.55,0.00038904,120]
[336509493,1724886124588,-661.31,0.00038904,120]
[336509494,1724886124618,-2852.11,0.00038904,120]
[336509495,1724886124653,-500.0,0.00038904,120]
[336509496,1724886124685,-625.06,0.00038904,120]
[336509497,1724886124719,-500.0,0.00038904,120]
[336509498,1724886124753,-500.0,0.00038904,120]
[336509499,1724886124787,-500.0,0.00038904,120]
[336509500,1724886124821,-500.0,0.00038904,120]
[336509501,1724886124854,-500.0,0.00038904,120]
[336509502,1724886124888,-500.0,0.00038904,120]
[336509503,1724886124927,-1328.25,0.00038904,120]
[336509504,1724886124959,-2041.52,0.00038904,120]
[336509505,1724886124991,-500.0,0.00038904,120]
[336509506,1724886125024,-500.0,0.00038904,120]
[336509507,1724886125056,-548.10666724,0.00038904,120]
[336509508,1724886125087,-1168.51,0.00038904,120]
[336509509,1724886125117,-1071.25,0.00038904,120]
[336509510,1724886125153,-500.0,0.00038904,120]
[336509511,1724886125183,-1236.83,0.00038904,120]
[336509512,1724886125215,-500.0,0.00038904,120]
[336509513,1724886125245,-500.0,0.00038904,120]
[336509514,1724886125276,-1282.71,0.00038904,120]
[336509515,1724886125308,-500.0,0.00038904,120]
[336509516,1724886125341,-1254.59,0.00038904,120]
[336509517,1724886125372,-218.50068097,0.00038904,120]
[336509518,1724886125599,-511.54,0.00038904,120]
[336509519,1724886125628,-500.0,0.00038904,120]
[336509520,1724886125660,-449.18427768,0.00038904,120]
[336509521,1724886125689,-1317.07,0.00038904,120]
[336509522,1724886125716,-500.0,0.00038904,120]
[336509523,1724886125746,-2462.79,0.00038904,120]
[336509524,1724886125778,-500.0,0.00038904,120]
[336509525,1724886125806,-2180.61,0.00038904,120]
[336509526,1724886125833,-500.0,0.00038904,120]
[336509527,1724886125861,-3914.35,0.00038904,120]
[336509528,1724886125890,-1447.24,0.00038904,120]
[336509529,1724886125919,-989.78,0.00038904,120]
[336509530,1724886125949,-500.0,0.00038904,120]
[336509531,1724886125978,-393.79351444,0.00038904,120]
[336509532,1724886126007,-500.0,0.00038904,120]
[336509533,1724886126039,-2819.49,0.00038904,120]
[336509534,1724886126072,-2716.06,0.00038904,120]
[336509535,1724886126104,-534.19,0.00038904,120]
[336509536,1724886126134,-2329.87,0.00038904,120]
[336509537,1724886126171,-500.0,0.00038904,120]
[336509538,1724886126205,-500.0,0.00038904,120]
[336509539,1724886126236,-1098.6,0.00038904,120]
[336509540,1724886126266,-878.41,0.00038904,120]
[336509541,1724886126302,-1055.3,0.00038904,120]
[336509542,1724886126334,-500.0,0.00038904,120]
[336509543,1724886126368,-2447.17,0.00038904,120]
[336509544,1724886126404,-500.0,0.00038904,120]
[336509545,1724886126440,-2206.0,0.00038904,120]
[336509546,1724886126469,-500.0,0.00038904,120]
[336509547,1724886126502,-500.0,0.00038904,120]
[336509548,1724886126535,-467.64756301,0.00038904,120]
[336509549,1724886126567,-3759.81,0.00038904,120]
[336509550,1724886126597,-787.4,0.00038904,120]
[336509551,1724886126629,-500.0,0.00038904,120]
[336509552,1724886126665,-500.0,0.00038904,120]
[336509553,1724886126699,-500.0,0.00038904,120]
[336509554,1724886126735,-2197.93,0.00038904,120]
[336509555,1724886126768,-1245.27,0.00038904,120]
[336509556,1724886126802,-500.0,0.00038904,120]
[336509557,1724886126836,-500.0,0.00038904,120]
[336509558,1724886126869,-699.12,0.00038904,120]
[336509559,1724886126902,-591.63192652,0.00038904,120]
[336509560,1724886126933,-500.0,0.00038904,120]
[336509561,1724886126964,-779.28,0.00038904,120]
[336509562,1724886126995,-668.68,0.00038904,120]
[336509563,1724886127029,-500.0,0.00038904,120]
[336509564,1724886127061,-2779.4,0.00038904,120]
[336509565,1724886127091,-500.0,0.00038904,120]
[336509566,1724886127124,-500.0,0.00038904,120]
[336509567,1724886127157,-995.74,0.00038904,120]
[336509568,1724886127191,-500.0,0.00038904,120]
[336509569,1724886127225,-623.45,0.00038904,120]
[336509570,1724886127259,-732.33,0.00038904,120]
[336509571,1724886127291,-879.65,0.00038904,120]
[336509572,1724886127326,-2791.36,0.00038904,120]
[336509573,1724886127360,-1967.08,0.00038904,120]
[336509574,1724886127393,-500.0,0.00038904,120]
[336509575,1724886127431,-2763.58,0.00038904,120]
[336509576,1724886127464,-671.02,0.00038904,120]
[336509577,1724886127497,-500.0,0.00038904,120]
[336509578,1724886127529,-2038.1,0.00038904,120]
[336509579,1724886127561,-806.17,0.00038904,120]
[336509580,1724886127596,-1168.3,0.00038904,120]
[336509581,1724886127628,-500.0,0.00038904,120]
[336509582,1724886127660,-150.0,0.00038904,120]
[336509583,1724886127691,-1582.04,0.00038904,120]
[336509584,1724886127724,-2245.6,0.00038904,120]
[336509585,1724886127757,-500.0,0.00038904,120]
[336509586,1724886127789,-500.0,0.00038904,120]
[336509587,1724886127822,-2034.0,0.00038904,120]
[336509588,1724886127855,-990.1,0.00038904,120]
[336509589,1724886127888,-719.81,0.00038904,120]
[336509590,1724886127923,-500.0,0.00038904,120]
[336509591,1724886127953,-4640.88,0.00038904,120]
[336509592,1724886127982,-899.56,0.00038904,120]
[336509593,1724886128013,-581.87,0.00038904,120]
[336509594,1724886128051,-2490.91,0.00038904,120]
[336509595,1724886128084,-500.0,0.00038904,120]
[336509596,1724886128117,-516.34481954,0.00038904,120]
[336509597,1724886128159,-500.0,0.00038904,120]
[336509598,1724886128190,-3043.56,0.00038904,120]
[336509599,1724886128225,-500.0,0.00038904,120]
[336509600,1724886128256,-500.0,0.00038904,120]
[336509601,1724886128288,-500.0,0.00038904,120]
[336509602,1724886128319,-1397.51,0.00038904,120]
[336509603,1724886128351,-500.0,0.00038904,120]
[336509604,1724886128385,-500.0,0.00038904,120]
[336509605,1724886128418,-500.0,0.00038904,120]
[336509606,1724886128449,-500.0,0.00038904,120]
[336509607,1724886128482,-601.93,0.00038904,120]
[336509608,1724886128513,-500.0,0.00038904,120]
[336509609,1724886128543,-2426.42,0.00038904,120]
[336509610,1724886128572,-748.25,0.00038904,120]
[336509611,1724886128601,-500.0,0.00038904,120]
[336509612,1724886128632,-937.62,0.00038904,120]
[336509613,1724886128666,-500.0,0.00038904,120]
[336509614,1724886128694,-500.0,0.00038904,120]
[336509615,1724886128722,-502.13,0.00038904,120]
[336509616,1724886128751,-1500.0,0.00038904,120]
[336509617,1724886128780,-639.58,0.00038904,120]
[336509618,1724886128810,-2758.33,0.00038904,120]
[336509619,1724886128838,-500.0,0.00038904,120]
[336509620,1724886128868,-500.0,0.00038904,120]
[336509621,1724886128896,-530.77,0.00038904,120]
[336509622,1724886128926,-2946.05,0.00038904,120]
[336509623,1724886128954,-500.0,0.00038904,120]
[336509624,1724886129195,-1790.67,0.00038904,120]
[336509625,1724886129227,-1255.43,0.00038904,120]
[336509626,1724886129257,-500.0,0.00038904,120]
[336509627,1724886129289,-787.1,0.00038904,120]
[336509628,1724886129318,-500.0,0.00038904,120]
[336509629,1724886129348,-500.0,0.00038904,120]
[336509630,1724886129381,-2000.0,0.00038904,30]
[336509631,1724886129412,-500.0,0.00038904,120]
[336509632,1724886129440,-500.0,0.00038904,120]
[336509633,1724886129470,-500.0,0.00038904,120]
[336509634,1724886129499,-500.0,0.00038904,120]
[336509635,1724886129526,-1395.9,0.00038904,120]
[336509636,1724886129555,-1794.03,0.00038904,120]
[336509637,1724886129585,-500.0,0.00038904,120]
[336509638,1724886129613,-1730.16,0.00038904,120]
[336509639,1724886129644,-500.0,0.00038904,120]
[336509640,1724886129687,-500.0,0.00038904,120]
[336509641,1724886129718,-1522.6,0.00038904,120]
[336509642,1724886129749,-910.11,0.00038904,120]
[336509643,1724886129780,-1425.35,0.00038904,120]
[336509644,1724886129810,-500.0,0.00038904,120]
[336509645,1724886129841,-500.0,0.00038904,120]
[336509646,1724886129870,-500.0,0.00038904,120]
[336509647,1724886129902,-1185.86,0.00038904,120]
[336509648,1724886129931,-500.0,0.00038904,120]
[336509649,1724886129959,-1314.23,0.00038904,120]
[336509650,1724886129987,-1220.71,0.00038904,120]
[336509651,1724886130016,-500.0,0.00038904,120]
[336509652,1724886130046,-1470.7,0.00038904,120]
[336509653,1724886130075,-500.0,0.00038904,120]
[336509654,1724886130105,-1225.79,0.00038904,120]
[336509655,1724886130134,-2597.09,0.00038904,120]
[336509656,1724886130165,-568.49988856,0.00038904,120]
[336509657,1724886130194,-500.0,0.00038904,120]
[336509658,1724886130223,-568.49,0.00038904,120]
[336509659,1724886130252,-500.0,0.00038904,120]
[336509660,1724886130286,-500.0,0.00038904,120]
[336509661,1724886130315,-1163.17,0.00038904,120]
[336509662,1724886130345,-1039.1,0.00038904,120]
[336509663,1724886130378,-500.0,0.00038904,120]
[336509664,1724886130413,-2492.0,0.00038904,120]
[336509665,1724886130444,-500.0,0.00038904,120]
[336509666,1724886130474,-500.0,0.00038904,120]
[336509667,1724886130503,-545.49,0.00038904,120]
[336509668,1724886130531,-318.13190257,0.00038904,120]
[336509669,1724886130558,-500.0,0.00038904,120]
[336509670,1724886130586,-1698.99,0.00038904,120]
[336509671,1724886130616,-500.0,0.00038904,120]
[336509672,1724886130644,-921.5,0.00038904,120]
[336509673,1724886130674,-500.0,0.00038904,120]
[336509674,1724886130703,-1071.81,0.00038904,120]
[336509675,1724886130732,-500.0,0.00038904,120]
[336509676,1724886130760,-500.0,0.00038904,120]
[336509677,1724886130789,-500.0,0.00038904,120]
[336509678,1724886130817,-500.0,0.00038904,120]
[336509679,1724886130844,-1739.55,0.00038904,120]
[336509680,1724886130873,-500.0,0.00038904,120]
[336509681,1724886130901,-500.0,0.00038904,120]
[336509682,1724886130929,-532.33,0.00038904,120]
[336509683,1724886130958,-500.0,0.00038904,120]
[336509684,1724886130986,-500.0,0.00038904,120]
[336509685,1724886131015,-500.0,0.00038904,120]
[336509686,1724886131045,-500.0,0.00038904,120]
[336509687,1724886131076,-500.0,0.00038904,120]
[336509688,1724886131105,-876.15,0.00038904,120]
[336509689,1724886131133,-1773.29,0.00038904,120]
[336509690,1724886131164,-165.28687752,0.00038904,120]
[336509691,1724886131192,-500.0,0.00038904,120]
[336509692,1724886131221,-500.0,0.00038904,120]
[336509693,1724886131252,-3048.2,0.00038904,120]
[336509694,1724886131284,-1227.12,0.00038904,120]
[336509695,1724886131315,-1338.91725933,0.00038904,120]
[336509696,1724886131347,-1478.8,0.00038904,120]
[336509697,1724886131378,-500.0,0.00038904,120]
[336509698,1724886131406,-2147.42,0.00038904,120]
[336509699,1724886131436,-526.7828738,0.00038904,120]
[336509700,1724886131467,-983.04,0.00038904,120]
[336509701,1724886131495,-1274.78,0.00038904,120]
[336509702,1724886131524,-500.0,0.00038904,120]
[336509703,1724886131554,-500.0,0.00038904,120]
[336509704,1724886131583,-2003.43,0.00038904,120]
[336509705,1724886131615,-500.0,0.00038904,120]
[336509706,1724886131646,-500.0,0.00038904,120]
[336509707,1724886131678,-1014.21,0.00038904,120]
[336509708,1724886131707,-2090.58,0.00038904,120]
[336509709,1724886131737,-2156.12,0.00038904,120]
[336509710,1724886131765,-500.0,0.00038904,120]
[336509711,1724886131798,-1638.82,0.00038904,120]
[336509712,1724886131827,-2080.46,0.00038904,120]
[336509713,1724886131857,-500.0,0.00038904,120]
[336509714,1724886131888,-500.0,0.00038904,120]
[336509715,1724886131921,-500.0,0.00038904,120]
[336509716,1724886131950,-1292.93,0.00038904,120]
[336509717,1724886131980,-500.0,0.00038904,120]
[336509718,1724886132009,-500.0,0.00038904,120]
[336509719,1724886132040,-539.8,0.00038904,120]
[336509720,1724886132071,-627.29849911,0.00038904,120]
[336509721,1724886132101,-1928.14,0.00038904,120]
[336509722,1724886132131,-500.0,0.00038904,120]
[336509723,1724886132161,-570.39,0.00038904,120]
[336509724,1724886132191,-500.0,0.00038904,120]
[336509725,1724886132224,-1978.99,0.00038904,120]
[336509726,1724886132296,-500.0,0.00038904,120]
[336509727,1724886132365,-500.0,0.00038904,120]
[336509728,1724886132433,-657.96,0.00038904,120]
[336509729,1724886132703,-500.0,0.00038904,120]
[336509730,1724886132768,-599.97,0.00038904,120]
[336509731,1724886132847,-1659.69,0.00038904,120]
[336509732,1724886132932,-1100.2,0.00038904,120]
[336509733,1724886133004,-500.0,0.00038904,120]
[336509734,1724886133072,-856.47,0.00038904,120]
[336509735,1724886133143,-500.0,0.00038904,120]
[336509736,1724886133218,-642.74,0.00038904,120]
[336509737,1724886133303,-538.57,0.00038904,120]
[336509738,1724886133369,-2510.82,0.00038904,120]
[336509739,1724886133434,-500.0,0.00038904,120]
[336509740,1724886133500,-2667.73,0.00038904,120]
[336509741,1724886133566,-596.3,0.00038904,120]
[336509742,1724886133628,-590.49,0.00038904,120]
[336509743,1724886133688,-1542.54,0.00038904,120]
[336509744,1724886133747,-500.0,0.00038904,120]
[336509745,1724886133812,-2280.95,0.00038904,120]
[336509746,1724886133872,-1387.25,0.00038904,120]
[336509747,1724886133935,-791.1,0.00038904,120]
[336509748,1724886134007,-500.0,0.00038904,120]
[336509749,1724886134082,-500.0,0.00038904,120]
[336509750,1724886134146,-1973.94,0.00038904,120]
[336509751,1724886134215,-1458.38,0.00038904,120]
[336509752,1724886134287,-500.0,0.00038904,120]
[336509753,1724886134361,-858.32,0.00038904,120]
[336509754,1724886134430,-1720.45,0.00038904,120]
[336509755,1724886134495,-500.0,0.00038904,120]